[Event "Menorca Open-A 2022"]
[Site "Menorca"]
[Date "2022.04.24"]
[Round "7.8"]
[White "Vasquez Schroeder, Rodrigo"]
[Black "Heimann, Andreas"]
[Result "1/2-1/2"]
[ECO "C54"]
[WhiteElo "2500"]
[BlackElo "2583"]
[Annotator "TA"]
[PlyCount "41"]
[EventDate "2022.04.20"]
[EventType "swiss"]
[EventCountry "ESP"]
[SourceTitle "playchess.com"]
[Source "ChessBase"]
[SourceQuality "1"]
[TimeControl "5400+30"]

{[%evp 10,41,17,0,7,0,0,0,0,0,0,0,0,0,0,0,0,0,18,0,0,0,0,18,4,0,-12,-13,-12,-23,-13,-25,-35,-49]} 1. e4 {[%emt 0:00:03]} e5 {[%emt 0:01:07]} 2. Nf3 {[%emt 0:00:08]} Nc6 {[%emt 0:00:05]} 3. Bc4 {[%emt 0:00:04]} Bc5 {[%emt 0:00:04]} 4. c3 {[%emt 0:00:24]} Nf6 {[%emt 0:00:04]} 5. d3 {[%emt 0:00:10]} d6 {[%emt 0:00:22]} 6. Bb3 {[%emt 0:00:42]} a5 {[%emt 0:01:38] C54: Giuoco Piano: 4 c3 Nf6, main lines with 5 d4 and 5 d3.} 7. a4 {[%emt 0:01:01]} O-O {[%emt 0:06:48]} 8. O-O {[%emt 0:00:22]} h6 {[%emt 0:00:39] The position is equal.} 9. Nbd2 {[%emt 0:04:37]} Ba7 {[%emt 0:01:00]} 10. Nc4 {[%emt 0:01:12]} Be6 {[%emt 0:00:59]} 11. Re1 {[%emt 0:03:05]} Re8 {[%emt 0:00:05]} 12. Be3 {[%emt 0:04:14]} Bxe3 {[%emt 0:02:19]} 13. Nxe3 {[%emt 0:00:18]} d5 {[%emt 0:06:30] [#]} 14. Qc2 $146 {[%emt 0:02:04]} ({Predecessor:} 14. exd5 Nxd5 15. Nc4 Nf4 16. Ncxe5 Nxe5 17. Rxe5 Nxd3 18. Re3 Bxb3 19. Rxe8+ Qxe8 20. Qxb3 {½-½ (31) Boukhris,Y (2185)-Riff,J (2499) Chalons en Champagne 2021}) 14... Qd7 {[%emt 0:11:34]} 15. Rad1 {[%emt 0:01:05]} d4 {[%emt 0:00:04]} 16. Bxe6 {[%emt 0:01:11]} Rxe6 {[%emt 0:00:03]} 17. Nc4 {[%emt 0:00:52]} b6 {[%emt 0:04:04]} 18. g3 {[%emt 0:02:45]} Rd8 {[%emt 0:01:54]} 19. Kg2 {[%emt 0:02:24]} Re7 {[%emt 0:06:07]} 20. h3 {[%emt 0:04:02]} Qe6 {[%emt 0:00:33]} 21. Nfd2 {[%emt 0:01:59] Weighted Error Value: White=0.05 (flawless) /Black=0.02 (flawless)} 1/2-1/2

[Event "Menorca Open-A 2022"]
[Site "Menorca"]
[Date "2022.04.24"]
[Round "7.9"]
[White "Minzer, Claudio Javier"]
[Black "Cuenca Jimenez, Jose Fernando"]
[Result "1/2-1/2"]
[ECO "A15"]
[WhiteElo "2427"]
[BlackElo "2558"]
[Annotator "TA"]
[PlyCount "53"]
[EventDate "2022.04.20"]
[EventType "swiss"]
[EventCountry "ESP"]
[SourceTitle "playchess.com"]
[Source "ChessBase"]
[SourceQuality "1"]
[TimeControl "5400+30"]

{[%evp 17,53,16,16,25,31,27,54,59,57,59,79,70,77,73,127,133,125,125,108,103,264,260,387,314,293,123,127,139,152,143,185,182,156,79,74,83,81,85]} 1. Nf3 {[%emt 0:00:04]} Nf6 {[%emt 0:00:46]} 2. c4 {[%emt 0:00:29]} g6 {[%emt 0:00:16]} 3. b4 {[%emt 0:00:17]} Bg7 {[%emt 0:10:05]} 4. Bb2 {[%emt 0:00:21]} O-O {[%emt 0:00:04]} 5. g3 {[%emt 0:00:47]} d6 {[%emt 0:04:13]} 6. Bg2 {[%emt 0:00:42]} e5 {[%emt 0:01:17]} 7. d3 {[%emt 0:01:40]} a5 {[%emt 0:02:53]} 8. b5 {[%emt 0:00:17]} Nbd7 {[%emt 0:00:55]} 9. O-O {[%emt 0:08:51]} Nc5 {[%emt 0:06:38]} 10. Nc3 {[%emt 0:02:59] A15: English Opening: 1...Nf6.} Nfd7 {[%emt 0:04:20][%cal Oe5e4] [#]} 11. Rc1 $146 {[%emt 0:06:33]} ({Predecessor:} 11. Ne1 f5 12. f4 Nf6 13. Rb1 Ng4 14. Nc2 exf4 15. gxf4 Qh4 16. h3 Nf6 17. Qe1 Qxe1 18. Rbxe1 {½-½ (46) Akshayraj,K (2416)-Kalegin,E (2481) Alushta 2007}) 11... f5 {[%emt 0:09:18]} 12. d4 {[%emt 0:08:14] White is slightly better.} exd4 {[%emt 0:09:29]} 13. Nxd4 {[%emt 0:00:11]} Ne5 {[%emt 0:01:49]} 14. Nb3 {[%emt 0:07:15]} Ne6 {[%emt 0:18:18]} 15. Na4 {[%emt 0:03:02]} Qe8 {[%emt 0:02:32]} (15... f4 $142) 16. Nd4 {[%emt 0:14:28]} Nxd4 {[%emt 0:07:22]} 17. Bxd4 {[%emt 0:00:09]} f4 {[%emt 0:02:28] [#]} 18. c5 $1 {[%emt 0:12:58]} Qxb5 $2 {[%emt 0:03:12]} (18... d5 $16) 19. cxd6 $18 {[%emt 0:00:06]} Bg4 {[%emt 0:05:45]} (19... cxd6 {was called for.} 20. Nb6 Rb8 21. gxf4 (21. Nxc8 Rbxc8 22. Rb1 Qd7 $16) (21. Rxc8 Rfxc8 22. Nxc8 Rxc8 $16) 21... Nc6 22. Bd5+ Kh8) 20. Bxe5 {[%emt 0:01:09]} Qxe5 {[%emt 0:00:42]} 21. Qd5+ {[%emt 0:00:40]} (21. Bxb7 Rab8 22. Qd5+ (22. Rxc7 fxg3 23. hxg3 Rbd8 $14) (22. Bd5+ Kh8 $11) 22... Be6 23. Qxe5 Bxe5 $16) (21. Rxc7 Rad8 $14) (21. dxc7 $18 {and the rest is easy. Nb6 is the strong threat.} fxg3 22. Qb3+ (22. hxg3 Rac8 $18) (22. fxg3 Rxf1+ 23. Kxf1 Rf8+ 24. Bf3 Bh6 $16) 22... Kh8 23. Qxg3 (23. hxg3 Rac8 $18)) 21... Be6 $16 {[%emt 0:01:03]} 22. Qxe5 {[%emt 0:00:53] &Bianco is more active.} ({Not} 22. Qxb7 cxd6 23. Nb6 Rab8 $15) 22... Bxe5 {[%emt 0:00:01] A strong pair of Bishops.} 23. dxc7 {[%emt 0:03:19] [#] Hoping for Nb6.} Rac8 {[%emt 0:00:14]} 24. Nc5 {[%emt 0:06:40]} ({But not} 24. Bxb7 $6 Rxc7 25. Rxc7 Bxc7 $11) 24... Bf5 {[%emt 0:00:05]} 25. Bxb7 {[%emt 0:20:56]} (25. g4 $142 Bxg4 26. Bd5+ Kg7 27. Be6 Bxe2 28. Rfe1) 25... Rxc7 26. Bd5+ {[%emt 0:00:30]} Kh8 {[%emt 0:09:45]} 27. Ne6 {[%emt 0:00:30] Weighted Error Value: White=0.18 (very precise) /Black=0.29 (precise)} 1/2-1/2

[Event "Menorca Open-A 2022"]
[Site "Menorca"]
[Date "2022.04.24"]
[Round "7.10"]
[White "Sosa, Tomas"]
[Black "Baskin, Robert"]
[Result "1/2-1/2"]
[ECO "A29"]
[WhiteElo "2554"]
[BlackElo "2393"]
[Annotator "TA"]
[PlyCount "54"]
[EventDate "2022.04.20"]
[EventType "swiss"]
[EventCountry "ESP"]
[SourceTitle "playchess.com"]
[Source "ChessBase"]
[SourceQuality "1"]
[TimeControl "5400+30"]

{[%evp 23,54,-8,0,-25,-8,-7,-14,-17,-11,-41,-25,-45,-49,-60,-64,-56,-57,-135,-157,-152,-94,-246,-248,-268,-183,-221,-213,-198,-168,-183,-55,-340,-327]} 1. g3 {[%emt 0:00:04]} e5 {[%emt 0:06:20]} 2. c4 {[%emt 0:00:11]} Nf6 {[%emt 0:00:14]} 3. Bg2 {[%emt 0:00:25]} d5 {[%emt 0:00:30]} 4. cxd5 {[%emt 0:00:13]} Nxd5 {[%emt 0:00:03]} 5. Nc3 {[%emt 0:00:44]} Nb6 {[%emt 0:00:06]} 6. Nf3 {[%emt 0:00:08]} Nc6 {[%emt 0:00:05]} 7. O-O {[%emt 0:00:08]} Be7 {[%emt 0:00:04]} 8. a4 {[%emt 0:02:31]} a5 {[%emt 0:01:44]} 9. d3 {[%emt 0:09:05]} Be6 {[%emt 0:04:02]} 10. Be3 {[%emt 0:01:19]} Nd5 {[%emt 0:01:46]} 11. Nxd5 {[%emt 0:03:30]} Bxd5 {[%emt 0:01:21]} 12. Rc1 {[%emt 0:00:09]} O-O {[%emt 0:06:02]} 13. Bc5 {[%emt 0:03:52] A29: English Opening: Four Knights Variation with 4 g3.} Bd6 {[%emt 0:02:51] [#]} 14. e4 $146 {[%emt 0:04:41]} ({Predecessor:} 14. Nd2 Bxg2 15. Kxg2 Kh8 16. Kg1 f5 17. Bxd6 Qxd6 18. Nc4 Qd5 19. Rc3 Rad8 20. Qc1 Nd4 {½-½ (40) Bauer,W (1785)-Czap,B (2028) Bayern 2018}) 14... Be6 {[%emt 0:03:38]} 15. Be3 {[%emt 0:00:05] The position is equal.} Bg4 {[%emt 0:05:29]} 16. Qb3 {[%emt 0:03:49]} Bb4 {[%emt 0:02:27]} 17. Qd5 {[%emt 0:08:51]} Re8 {[%emt 0:18:36]} 18. Ng5 {[%emt 0:10:06]} Qe7 {[%emt 0:05:36]} 19. f3 {[%emt 0:01:10]} Rad8 {[%emt 0:02:10]} 20. fxg4 {[%emt 0:08:43]} Rxd5 $17 {[%emt 0:00:17]} 21. exd5 {[%emt 0:00:05] [#]} Nd4 {[%emt 0:04:38]} (21... Nd8 $142 $1 22. Ne4 Qd7) 22. d6 $2 {[%emt 0:06:00]} (22. Rxf7 $17 {was worth a try.} Ne2+ 23. Kf2 Qxf7+ 24. Nxf7 Nxc1 25. Nxe5) 22... Qxd6 $19 {[%emt 0:04:21] Hoping for ...Ne2+.} 23. Nxf7 {[%emt 0:00:44]} Qd7 {[%emt 0:06:02][%csl LRa4,LRg4] And now ...Ne2+ would win.} 24. Kh1 {[%emt 0:03:01]} c6 {[%emt 0:00:34] Threatens to win with ...Nb3.} ({Inferior is} 24... Qxa4 25. Bxd4 exd4 26. Bd5 $11) 25. Be4 {[%emt 0:03:05]} Qxg4 {[%emt 0:01:52] [#] aiming for ...Ne2.} 26. Rf2 {[%emt 0:02:04]} Nb3 {[%emt 0:05:52]} ({Black should play} 26... h6 $19 {...Qe6 is the strong threat.} 27. Rcf1 (27. Nxe5 Rxe5 28. Rf4 Qe2 $19) 27... Qh3) 27. Rcf1 $2 {[%emt 0:00:57][%mdl 8192]} (27. Bf5 $1 $15 Qh5 28. Rcf1) 27... Bc5 {[%emt 0:04:59][%mdl 32768] Weighted Error Value: White=0.55/Black=0.22 (precise) . An unexpected result.} 1/2-1/2